bitfinex/quotes_BTCUSD_20240911
["timestamp","ask_amount","ask_price","bid_price","bid_amount"]
[1726056589082,0.001818,56839.0,56838.0,0.33924018]
[1726056589777,0.001818,56839.0,56838.0,0.3427581]
[1726056590006,0.001818,56839.0,56838.0,0.3447581]
[1726056592444,0.001818,56839.0,56838.0,0.3427581]
[1726056594549,0.001818,56839.0,56838.0,0.3657581]
[1726056594778,0.001818,56839.0,56838.0,0.3677581]
[1726056595010,0.001818,56839.0,56838.0,0.3657581]
[1726056595242,0.001818,56839.0,56838.0,0.3677581]
[1726056597335,0.001818,56839.0,56838.0,0.4677581]
[1726056598086,0.001818,56839.0,56838.0,0.4977581]
[1726056598341,0.000818,56840.0,56839.0,0.032]
[1726056598587,0.000818,56841.0,56840.0,0.1705]
[1726056598828,0.000818,56841.0,56840.0,0.47295746]
[1726056599536,0.0021609,56851.0,56844.0,0.37042033]
[1726056599770,0.0021609,56851.0,56844.0,2.16936051]
[1726056600499,0.0021609,56851.0,56844.0,0.66736051]
[1726056600735,0.0021609,56851.0,56844.0,0.66936051]
[1726056601696,0.0021609,56851.0,56844.0,0.68336051]
[1726056601926,0.0035005,56845.0,56844.0,0.69736051]
[1726056602159,0.0035005,56845.0,56844.0,0.66536051]
[1726056602391,0.0035005,56845.0,56844.0,0.47681549]
[1726056602627,0.0035005,56845.0,56844.0,0.67673582]
[1726056603083,0.0035005,56845.0,56844.0,0.44244018]
[1726056603988,0.0035005,56845.0,56844.0,0.42844018]
[1726056604218,0.0025005,56845.0,56844.0,0.42844018]
[1726056604678,0.0035005,56845.0,56844.0,0.43944018]
[1726056604925,0.0035005,56845.0,56844.0,0.35114018]
[1726056605173,0.0035005,56845.0,56844.0,0.27414018]
[1726056606546,0.0043185,56845.0,56844.0,0.27414018]
[1726056621793,0.0043185,56845.0,56844.0,0.27394018]
[1726056622030,0.0043185,56845.0,56844.0,0.27314018]
[1726056622620,0.0043185,56845.0,56844.0,0.27294018]
[1726056622857,0.0043185,56845.0,56844.0,0.27234018]
[1726056623072,0.0043185,56845.0,56844.0,0.27224018]
[1726056623515,0.0043185,56845.0,56844.0,0.28194018]
[1726056623744,0.0043185,56845.0,56844.0,0.28134018]
[1726056623968,0.0043185,56845.0,56844.0,0.28124018]
[1726056624461,0.0043185,56845.0,56844.0,0.27094018]
[1726056624687,0.0043185,56845.0,56844.0,0.27034018]
[1726056624904,0.0043185,56845.0,56844.0,0.19894018]
[1726056625144,0.0043185,56845.0,56844.0,0.19874018]
[1726056626764,0.1166185,56845.0,56844.0,0.023]
[1726056627219,0.15388231,56845.0,56844.0,0.023]
[1726056627894,0.15388231,56845.0,56844.0,0.011]
[1726056628119,0.06,56842.0,56841.0,0.001636]
[1726056628402,0.1123,56842.0,56841.0,0.001636]
[1726056628626,0.1157,56842.0,56841.0,0.001636]
[1726056628849,0.17130854,56842.0,56841.0,0.001636]
[1726056629508,0.1163,56842.0,56841.0,0.001636]
[1726056630916,0.1153,56842.0,56841.0,0.001636]
[1726056631603,0.13531307,56842.0,56841.0,0.001636]
[1726056633235,0.13031307,56842.0,56841.0,0.001636]
[1726056633460,0.13631307,56842.0,56841.0,0.002636]
[1726056638747,0.08401307,56842.0,56841.0,0.002636]
[1726056641315,0.02401307,56842.0,56841.0,0.31977618]
[1726056641536,0.02401307,56842.0,56841.0,0.44277618]
[1726056641790,0.009,56842.0,56841.0,0.44277618]
[1726056642286,0.003,56842.0,56841.0,0.44177618]
[1726056642545,0.003,56842.0,56841.0,0.44377618]
[1726056642787,0.000818,56844.0,56843.0,0.1439]
[1726056643027,0.000818,56844.0,56843.0,0.646278]
[1726056644426,0.000818,56844.0,56843.0,0.676278]
[1726056644679,0.000818,56844.0,56843.0,0.74042912]
[1726056644901,0.0033185,56845.0,56844.0,0.032]
[1726056645150,0.0033185,56845.0,56844.0,0.67314292]
[1726056645367,0.0033185,56845.0,56844.0,0.75192152]
[1726056645813,0.0029185,56845.0,56844.0,0.75192152]
[1726056646042,0.0025185,56845.0,56844.0,0.75192152]
[1726056646272,0.0021609,56851.0,56850.0,0.1687]
[1726056646504,0.0021609,56851.0,56850.0,0.67107723]
[1726056646505,0.0020609,56851.0,56850.0,0.67107723]
[1726056646769,0.0016609,56851.0,56850.0,0.67107723]
[1726056647056,0.0012609,56851.0,56850.0,0.67107723]
[1726056647300,0.0011609,56851.0,56850.0,0.67107723]
[1726056647600,0.0008609,56851.0,56850.0,0.67107723]
[1726056647608,0.0006609,56851.0,56850.0,0.67107723]
[1726056647811,0.0002609,56851.0,56850.0,0.68507723]
[1726056648026,0.0001609,56851.0,56850.0,0.68507723]
[1726056648259,0.0006789,56852.0,56851.0,0.032]
[1726056648464,0.0004789,56852.0,56851.0,0.4731569]
[1726056648696,0.0001789,56852.0,56851.0,0.4731569]
[1726056648909,0.0024794,56856.0,56855.0,0.002]
[1726056649144,0.0022794,56856.0,56855.0,0.54307723]
[1726056649356,0.0022794,56856.0,56855.0,0.64307723]
[1726056649785,0.0022794,56856.0,56855.0,0.63956051]
[1726056650012,0.0022794,56856.0,56855.0,0.63756051]
[1726056650241,0.0022794,56856.0,56855.0,0.65156051]
[1726056651761,0.0032794,56856.0,56855.0,0.66456051]
[1726056651978,0.0032794,56856.0,56855.0,0.66656051]
[1726056652181,0.0032794,56856.0,56855.0,0.67589642]
[1726056652831,0.0032794,56856.0,56855.0,0.67789642]
[1726056655608,0.0040964,56856.0,56855.0,0.67789642]
[1726056657160,0.0040964,56856.0,56855.0,0.70789642]
[1726056658463,0.0030964,56856.0,56855.0,0.69489642]
[1726056658669,0.0030964,56856.0,56855.0,2.19489642]
[1726056658881,0.0040964,56856.0,56855.0,2.20889642]
[1726056659126,0.0040964,56856.0,56855.0,2.18089642]
[1726056659127,0.0030964,56856.0,56855.0,2.18089642]
[1726056659544,0.0040964,56856.0,56855.0,2.20889642]
[1726056659972,0.0040964,56856.0,56855.0,2.19489642]
[1726056660189,0.0040964,56856.0,56855.0,2.20889642]
[1726056664719,0.0040964,56856.0,56855.0,2.20689642]
[1726056664917,0.0040964,56856.0,56855.0,0.68389642]
[1726056666341,0.0040964,56856.0,56855.0,0.20394018]
[1726056666819,0.0040964,56856.0,56855.0,0.20745722]
[1726056667025,0.0040964,56856.0,56855.0,0.28395722]
[1726056667463,0.0040964,56856.0,56855.0,0.26995722]
[1726056667689,0.0040964,56856.0,56855.0,0.39295722]
[1726056668099,0.0030964,56856.0,56855.0,0.37544018]
[1726056668346,0.0030964,56856.0,56855.0,0.38944018]
[1726056669000,0.0030964,56856.0,56855.0,0.38044018]
[1726056673978,0.0030964,56856.0,56855.0,0.028]
[1726056674398,0.01823767,56856.0,56855.0,0.028]
[1726056675057,0.01823767,56856.0,56850.0,0.001634]
[1726056675275,0.01823767,56856.0,56851.0,0.17594018]
[1726056675482,0.01823767,56856.0,56855.0,0.014]
[1726056675689,0.01823767,56856.0,56855.0,0.008]
[1726056675906,0.01923767,56856.0,56851.0,0.17594018]
[1726056676322,0.02123767,56856.0,56851.0,0.17594018]
[1726056676745,0.01823767,56856.0,56852.0,0.00351755]
[1726056676977,0.01823767,56856.0,56850.0,0.001634]
[1726056676978,0.03,56851.0,56850.0,0.001634]
[1726056677218,0.1123,56851.0,56850.0,0.001634]
[1726056677422,0.12727375,56851.0,56850.0,0.001634]
[1726056677638,0.13917375,56851.0,56850.0,0.001634]
[1726056678075,0.12727375,56851.0,56850.0,0.001634]
[1726056678337,0.13397375,56851.0,56850.0,0.001634]
[1726056679032,0.13397375,56851.0,56850.0,0.006634]
[1726056679714,0.13397375,56851.0,56850.0,0.001634]
[1726056679928,0.13397375,56851.0,56850.0,0.008634]
[1726056680393,0.13397375,56851.0,56850.0,0.001634]
[1726056680820,0.13397375,56851.0,56850.0,0.003634]
[1726056681245,0.13397375,56851.0,56850.0,0.001634]
[1726056681658,0.13597375,56851.0,56850.0,0.002634]
[1726056681866,0.15451294,56851.0,56850.0,0.001634]
[1726056682323,0.15551294,56851.0,56850.0,0.001634]
[1726056682951,0.15551294,56851.0,56850.0,0.002634]
[1726056685191,0.13497375,56851.0,56850.0,0.002634]
[1726056685409,0.12827375,56851.0,56850.0,0.002634]
[1726056692412,0.12827375,56851.0,56850.0,0.00257626]
[1726056696746,1.18570393,56851.0,56850.0,0.00257626]
[1726056696985,1.73419993,56851.0,56850.0,0.00257626]
[1726056697229,2.000608,56851.0,56850.0,0.00014845]
[1726056697744,2.20925547,56851.0,56850.0,0.00014845]
[1726056697983,1.85645947,56851.0,56850.0,0.00014845]
[1726056698210,1.56905857,56851.0,56850.0,0.00014845]
[1726056698444,1.57105857,56851.0,56850.0,0.00114845]
[1726056698675,1.57105857,56851.0,56850.0,0.001]
[1726056699160,1.57505857,56851.0,56850.0,0.002]
[1726056699387,1.62549604,56851.0,56850.0,0.001]
[1726056699612,0.1123,56842.0,56841.0,0.001636]
[1726056699856,0.51698201,56842.0,56841.0,0.001636]
[1726056700111,0.53175067,56842.0,56841.0,0.001636]
[1726056701313,0.53575067,56842.0,56841.0,0.002636]
[1726056702268,0.53175067,56842.0,56841.0,0.001636]
[1726056702498,0.53575067,56842.0,56841.0,0.003636]
[1726056702732,0.53975067,56842.0,56841.0,0.003636]
[1726056703002,0.53975067,56842.0,56833.0,0.001634]
[1726056703003,0.1123,56834.0,56833.0,0.001634]
[1726056703241,0.48816051,56834.0,56833.0,0.001634]
[1726056703482,0.50270878,56834.0,56833.0,0.001634]
[1726056704396,0.50270878,56834.0,56833.0,0.002634]
[1726056704397,0.50870878,56834.0,56833.0,0.002634]
[1726056704641,0.50270878,56834.0,56833.0,0.001634]
[1726056704866,0.58357356,56834.0,56833.0,0.002634]
[1726056705657,0.30278845,56834.0,56833.0,0.001634]
[1726056705878,0.50270878,56834.0,56833.0,0.001634]
[1726056706100,0.51570878,56834.0,56833.0,0.002634]
[1726056706331,0.51970878,56834.0,56833.0,0.003634]
[1726056706804,0.51570878,56834.0,56833.0,0.002634]
[1726056707042,0.56727966,56834.0,56833.0,0.002634]
[1726056707269,0.55827966,56834.0,56833.0,0.002634]
[1726056707709,0.52070878,56834.0,56833.0,0.003634]
[1726056712047,0.09254827,56834.0,56833.0,0.003634]
[1726056712499,0.09254827,56834.0,56833.0,0.064634]
[1726056712727,0.09254827,56834.0,56833.0,0.145334]
[1726056713329,0.08854827,56834.0,56833.0,0.144334]
[1726056713745,0.09254827,56834.0,56833.0,0.145334]
[1726056714168,0.07854827,56834.0,56833.0,0.144334]
[1726056714587,0.08754827,56834.0,56833.0,0.145334]
[1726056715022,0.07854827,56834.0,56833.0,0.144334]
[1726056715238,0.07954827,56834.0,56833.0,0.144334]
[1726056715465,0.07554827,56834.0,56833.0,0.143334]
[1726056715694,0.07954827,56834.0,56833.0,0.144334]
[1726056716135,0.07554827,56834.0,56833.0,0.143334]
[1726056717812,0.04554827,56834.0,56833.0,0.143334]
[1726056718031,0.01554827,56834.0,56833.0,0.143334]
[1726056718540,0.07554827,56834.0,56833.0,0.143334]
[1726056724669,0.04554827,56834.0,56833.0,0.143334]
[1726056724946,0.01554827,56834.0,56833.0,0.143334]
[1726056726221,0.01554827,56834.0,56833.0,0.32279277]
[1726056726448,0.01554827,56834.0,56833.0,0.31927418]
[1726056726689,0.001,56834.0,56833.0,0.31927418]
[1726056727434,0.000818,56841.0,56834.0,0.1375]
[1726056727658,0.000818,56841.0,56836.0,0.33742033]
[1726056727894,0.000818,56841.0,56835.0,0.17594018]
[1726056727895,0.000818,56841.0,56840.0,0.33742033]
[1726056728127,0.000818,56841.0,56840.0,0.51687848]
[1726056728882,0.000818,56841.0,56840.0,0.51336051]
[1726056729613,0.001818,56841.0,56840.0,0.1445]
[1726056729866,0.030818,56841.0,56840.0,0.1375]
[1726056730098,0.04630228,56841.0,56840.0,0.1605]
[1726056733325,0.04630228,56841.0,56840.0,0.0982]
[1726056733825,0.031818,56841.0,56840.0,0.0982]
[1726056734299,0.04636192,56841.0,56840.0,0.0982]
[1726056734965,0.04636192,56841.0,56840.0,0.0862]
[1726056735220,0.04636192,56841.0,56840.0,0.0942]
[1726056735460,0.04536192,56841.0,56840.0,0.0832]
[1726056735690,0.04536192,56841.0,56840.0,0.0752]
[1726056735914,0.04636192,56841.0,56840.0,0.0822]
[1726056736144,0.04536192,56841.0,56840.0,0.0772]
[1726056736465,0.04536192,56841.0,56840.0,0.0782]
[1726056736508,0.04536192,56841.0,56840.0,0.0762]
[1726056737462,0.04736192,56841.0,56840.0,0.0762]
[1726056737709,0.01736192,56841.0,56840.0,0.1399]
[1726056737933,0.01736192,56841.0,56840.0,0.31584018]
[1726056738141,0.01736192,56841.0,56840.0,0.31484018]
[1726056738394,0.003818,56841.0,56840.0,0.31835844]
[1726056738615,0.000817,56851.0,56843.0,0.002]
[1726056738842,0.000817,56851.0,56848.0,0.19992033]
[1726056739071,0.000817,56851.0,56850.0,0.0767]
[1726056739289,0.000817,56851.0,56850.0,0.25264018]
[1726056740513,0.000817,56851.0,56850.0,0.31905761]
[1726056741683,0.000817,56851.0,56850.0,0.32454018]
[1726056742134,0.000817,56851.0,56850.0,0.31554018]
[1726056742583,0.001817,56851.0,56850.0,0.3430214]
[1726056742814,0.000817,56851.0,56850.0,0.3370214]
[1726056743041,0.000817,56851.0,56850.0,0.33053882]
[1726056743274,0.001817,56851.0,56850.0,0.34753882]
[1726056745105,0.001817,56851.0,56850.0,0.3440214]
[1726056745799,0.001817,56851.0,56850.0,0.3540214]
[1726056749760,0.001817,56851.0,56850.0,0.3560214]
[1726056749985,0.001817,56851.0,56850.0,0.3540214]
[1726056754975,0.001817,56851.0,56850.0,0.55394173]
[1726056756849,0.001817,56851.0,56850.0,0.67894173]
[1726056757095,0.001817,56851.0,56850.0,0.70894173]
[1726056757821,0.001817,56851.0,56850.0,0.69994173]
[1726056758049,0.001817,56851.0,56850.0,0.70094173]
[1726056758050,0.000817,56851.0,56850.0,0.70094173]
[1726056758528,0.001817,56851.0,56850.0,0.70594173]
[1726056758739,0.000817,56851.0,56850.0,0.69194173]
[1726056758943,0.000817,56851.0,56850.0,0.70594173]
[1726056760026,0.000817,56851.0,56850.0,0.71994173]
[1726056766289,0.0030964,56856.0,56855.0,0.37402033]
[1726056766508,0.000818,56858.0,56857.0,0.032]
[1726056766727,0.000818,56858.0,56857.0,0.45355664]
[1726056766952,0.000818,56858.0,56857.0,0.47655664]
[1726056767864,0.000817,56870.0,56862.0,0.002]
[1726056768092,0.000817,56870.0,56862.0,0.57317663]
[1726056768309,0.000817,56870.0,56862.0,0.67317663]
[1726056768789,0.000817,56870.0,56862.0,2.17317663]
[1726056769923,0.000817,56870.0,56862.0,2.18717663]
[1726056770576,0.000817,56870.0,56862.0,2.21235205]
[1726056771026,0.000817,56870.0,56862.0,2.19835205]
[1726056771252,0.000817,56870.0,56862.0,2.21235205]
[1726056771459,0.000817,56870.0,56862.0,0.71235205]
[1726056784711,0.000818,56873.0,56862.0,0.71235205]
[1726056784712,0.000818,56873.0,56872.0,0.03]
[1726056784929,0.000818,56873.0,56872.0,0.56957589]
[1726056785154,0.0025005,56879.0,56875.0,0.1692]
[1726056785371,0.0025005,56879.0,56875.0,0.47165548]
[1726056785591,0.0025005,56879.0,56876.0,0.032]
[1726056785813,0.0025005,56879.0,56878.0,0.36912033]
[1726056786030,0.000817,56890.0,56889.0,0.34862033]
[1726056786248,0.000817,56890.0,56889.0,0.62807531]
[1726056786488,0.0021609,56897.0,56889.0,0.62807531]
[1726056786489,0.0021609,56897.0,56890.0,0.03]
[1726056786703,0.0021609,56897.0,56890.0,1.83445458]
[1726056787129,0.0021609,56897.0,56890.0,2.03437491]
[1726056788784,0.0021609,56897.0,56896.0,0.23192033]
[1726056789084,0.0021609,56897.0,56896.0,0.66736051]
[1726056791197,0.0021609,56897.0,56896.0,0.67936051]
[1726056791711,0.0021609,56897.0,56896.0,0.69536051]
[1726056791949,0.0021609,56897.0,56896.0,0.69336051]
[1726056793419,0.0021609,56897.0,56896.0,0.63186051]
[1726056795131,0.0021609,56897.0,56896.0,0.20394018]
[1726056795653,0.01299538,56897.0,56896.0,0.20394018]
[1726056796085,0.01299538,56897.0,56896.0,0.18994018]
[1726056796314,0.01299538,56897.0,56896.0,0.18594018]
[1726056796523,0.01299538,56897.0,56896.0,0.19194018]
[1726056796746,0.01299538,56897.0,56896.0,0.18194018]
[1726056796991,0.01299538,56897.0,56896.0,0.19094018]
[1726056797476,0.0021609,56897.0,56896.0,0.19094018]
[1726056798443,0.0021609,56897.0,56896.0,0.17594018]
[1726056798444,0.01299538,56897.0,56896.0,0.17594018]
[1726056798685,0.01299538,56897.0,56896.0,0.18694018]
[1726056799190,0.01299538,56897.0,56896.0,0.18594018]
[1726056799428,0.0021609,56897.0,56896.0,0.17594018]
[1726056799691,0.0021609,56897.0,56896.0,0.18794018]
[1726056799915,0.0021609,56897.0,56896.0,0.19794018]
[1726056800393,0.01314746,56897.0,56896.0,0.19794018]
[1726056800646,0.01396446,56897.0,56896.0,0.19794018]
[1726056802806,0.06786446,56897.0,56896.0,0.19794018]
[1726056804250,0.06786446,56897.0,56896.0,0.022]
[1726056805947,0.13836446,56897.0,56896.0,0.022]
[1726056806986,0.35220304,56897.0,56896.0,0.022]
[1726056807234,0.03,56892.0,56891.0,0.001634]
[1726056807473,0.44636051,56892.0,56891.0,0.001634]
[1726056807714,0.45716803,56892.0,56891.0,0.001634]
[1726056807966,0.3237404,56892.0,56891.0,0.001634]
[1726056808199,0.45716803,56892.0,56891.0,0.001634]
[1726056808435,0.48906803,56892.0,56891.0,0.001634]
[1726056809409,0.48906803,56892.0,56891.0,0.002634]
[1726056809620,0.48906803,56892.0,56891.0,0.003634]
[1726056810015,0.31312785,56892.0,56891.0,0.003634]
[1726056810485,0.34444063,56892.0,56891.0,0.003634]
[1726056811424,0.31286198,56892.0,56891.0,0.003634]
[1726056812315,0.31286198,56892.0,56891.0,0.001634]
[1726056812531,0.32186198,56892.0,56891.0,0.002634]
[1726056812752,0.32886198,56892.0,56891.0,0.003634]
[1726056812994,0.31286198,56892.0,56891.0,0.001634]
[1726056813479,0.32386198,56892.0,56891.0,0.002634]
[1726056814438,0.36424818,56892.0,56891.0,0.003634]
[1726056814902,0.13194165,56892.0,56891.0,0.003634]
[1726056819036,0.12113413,56892.0,56891.0,0.003634]
[1726056820989,0.11063413,56892.0,56891.0,0.003634]
[1726056821219,0.07873413,56892.0,56891.0,0.003634]
[1726056821892,0.019,56892.0,56891.0,0.003634]
[1726056822367,0.049,56892.0,56891.0,0.003634]
[1726056822576,0.019,56892.0,56891.0,0.003634]
[1726056822781,0.07873413,56892.0,56891.0,0.003634]
[1726056823002,0.04873413,56892.0,56891.0,0.003634]
[1726056823481,0.019,56892.0,56891.0,0.068934]
[1726056823706,0.019,56892.0,56891.0,0.150134]
[1726056824148,0.011,56892.0,56891.0,0.32507418]
[1726056824385,0.011,56892.0,56891.0,0.52499451]
[1726056824605,0.018817,56892.0,56891.0,0.52599451]
[1726056825063,0.011817,56892.0,56891.0,0.52499451]
[1726056825301,0.000817,56892.0,56891.0,0.52499451]
[1726056825520,0.006817,56892.0,56891.0,0.52599451]
[1726056825752,0.000817,56892.0,56891.0,0.52399451]
[1726056825978,0.000817,56892.0,56891.0,0.32407418]
[1726056826222,0.000817,56892.0,56891.0,0.33607418]
[1726056826223,0.001817,56892.0,56891.0,0.33607418]
[1726056826461,0.001817,56892.0,56891.0,0.32407418]
[1726056826462,0.000817,56892.0,56891.0,0.32407418]
[1726056826694,0.000817,56892.0,56891.0,0.33607418]
[1726056827143,0.001817,56892.0,56891.0,0.34907418]
[1726056827610,0.000817,56892.0,56891.0,0.33607418]
[1726056828055,0.001817,56892.0,56891.0,0.34907418]
[1726056828712,0.001817,56892.0,56891.0,0.173134]
[1726056829728,0.001817,56892.0,56891.0,0.54899451]
[1726056834143,0.000817,56892.0,56891.0,0.53599451]
[1726056834361,0.000817,56892.0,56891.0,0.54399451]
[1726056834581,0.001817,56892.0,56891.0,0.54399451]
[1726056835046,0.001817,56892.0,56891.0,0.53199451]
[1726056835265,0.001817,56892.0,56891.0,0.53799451]
[1726056835503,0.001817,56892.0,56891.0,0.53199451]
[1726056835976,0.002817,56892.0,56891.0,0.53799451]
[1726056838670,0.002817,56892.0,56891.0,0.71332551]
[1726056838955,0.002817,56892.0,56891.0,0.66299451]
[1726056839203,0.002817,56892.0,56891.0,0.66099451]
[1726056839419,0.002817,56892.0,56891.0,0.63799451]
[1726056841304,0.002817,56892.0,56891.0,0.62999451]
[1726056841568,0.001817,56892.0,56891.0,0.62999451]
[1726056841802,0.001817,56892.0,56891.0,0.63199451]
[1726056842037,0.001817,56892.0,56891.0,0.66899451]
[1726056842038,0.002817,56892.0,56891.0,0.66899451]
[1726056843033,0.001817,56892.0,56891.0,0.66099451]
[1726056843505,0.001817,56892.0,56891.0,0.67499451]
[1726056843973,0.001817,56892.0,56891.0,0.67699451]
[1726056845643,0.001817,56892.0,56891.0,0.67499451]
[1726056846669,0.001817,56892.0,56891.0,0.67699451]
[1726056847165,0.001817,56892.0,56891.0,2.17699451]
[1726056847417,0.001817,56892.0,56891.0,0.67699451]
[1726056847657,0.001817,56892.0,56891.0,0.67499451]
[1726056852066,0.001817,56892.0,56891.0,0.70526038]
[1726056852988,0.001817,56892.0,56891.0,0.70726038]
[1726056854388,0.001817,56892.0,56891.0,0.70526038]
[1726056857633,0.001817,56892.0,56891.0,0.70726038]
[1726056858076,0.001817,56892.0,56891.0,2.20726038]
[1726056861641,0.001817,56892.0,56891.0,0.20557418]
[1726056863027,0.001817,56892.0,56891.0,0.19157418]
[1726056863272,0.001817,56892.0,56891.0,0.20557418]
[1726056863730,0.001817,56892.0,56891.0,0.29157418]
[1726056863974,0.001817,56892.0,56891.0,0.30157418]
[1726056864447,0.001817,56892.0,56891.0,0.28757418]
[1726056864448,0.000817,56892.0,56891.0,0.28757418]
[1726056864714,0.000817,56892.0,56891.0,0.29857418]
[1726056864959,0.000817,56892.0,56891.0,0.49849451]
[1726056865190,0.000817,56892.0,56891.0,0.55349451]
[1726056865426,0.000817,56892.0,56891.0,0.55749451]
[1726056865658,0.000817,56892.0,56891.0,0.57149451]
[1726056871034,0.000817,56892.0,56891.0,0.30557418]
[1726056872095,0.000817,56892.0,56891.0,0.50549451]
[1726056873670,0.000817,56892.0,56891.0,0.64269451]
[1726056873902,0.000817,56892.0,56891.0,0.66569451]
[1726056875259,0.000817,56892.0,56891.0,0.71819662]
[1726056875751,0.000817,56892.0,56891.0,0.74444767]
[1726056875990,0.000817,56892.0,56891.0,0.94930852]
[1726056876464,0.000817,56892.0,56891.0,0.94933874]
[1726056876943,0.000817,56892.0,56891.0,0.74444767]
[1726056877644,0.000817,56892.0,56891.0,0.94925439]
[1726056880873,0.000817,56892.0,56891.0,0.97750535]
[1726056881630,0.000817,56892.0,56891.0,0.87250153]
[1726056881878,0.000817,56892.0,56891.0,1.03402218]
[1726056882125,0.000817,56892.0,56891.0,0.9027674]
[1726056882611,0.000817,56892.0,56891.0,0.90219853]
[1726056884625,0.000817,56892.0,56891.0,2.40219853]
[1726056887720,0.000817,56892.0,56891.0,2.40207394]
[1726056887946,0.000817,56892.0,56891.0,2.40209409]
[1726056892629,0.000817,56892.0,56891.0,2.40231448]
[1726056893961,0.000817,56892.0,56891.0,2.53355037]
[1726056894624,0.000817,56892.0,56891.0,2.40231448]
[1726056894836,0.000817,56892.0,56891.0,2.53355037]
[1726056895062,0.000817,56892.0,56891.0,2.40231448]
[1726056895557,0.000817,56892.0,56891.0,2.50729947]
[1726056895771,0.000817,56892.0,56891.0,2.40231448]
[1726056895983,0.000817,56892.0,56891.0,2.53355037]
[1726056896852,0.000817,56892.0,56891.0,2.50727427]
[1726056897707,0.000817,56892.0,56891.0,2.40248878]
[1726056898405,0.000817,56892.0,56891.0,2.19796038]
[1726056898619,0.000817,56892.0,56891.0,2.4025345]
[1726056900222,0.000817,56892.0,56891.0,0.4101483]
[1726056900441,0.073217,56892.0,56891.0,0.13460419]
[1726056900686,0.11324624,56892.0,56891.0,0.13460419]
[1726056901129,0.07295113,56892.0,56891.0,0.13460419]
[1726056901354,0.032717,56892.0,56891.0,0.31054437]
[1726056901581,0.000817,56892.0,56891.0,0.29654437]
[1726056901796,0.000817,56892.0,56891.0,0.29305969]
[1726056902019,0.000817,56892.0,56891.0,0.29705969]
[1726056902237,0.000817,56892.0,56891.0,0.48958081]
[1726056902445,0.000817,56892.0,56891.0,0.58558081]
[1726056902654,0.000817,56892.0,56891.0,0.59158081]
[1726056903311,0.000817,56892.0,56891.0,0.59206549]
[1726056903954,0.000817,56892.0,56891.0,0.58606549]
[1726056904175,0.000817,56892.0,56891.0,0.41712531]
[1726056904411,0.062717,56892.0,56891.0,0.11760419]
[1726056904832,0.062717,56892.0,56891.0,0.11360419]
[1726056904833,0.09245113,56892.0,56891.0,0.11360419]
[1726056905050,0.09245113,56892.0,56891.0,0.11860419]
[1726056905274,0.10274624,56892.0,56891.0,0.11860419]
[1726056905490,0.09245113,56892.0,56891.0,0.11860419]
[1726056907949,0.032717,56892.0,56891.0,0.11860419]
[1726056909377,0.000817,56892.0,56891.0,0.11860419]
[1726056909613,0.000817,56892.0,56891.0,0.29805975]
[1726056909841,0.000817,56892.0,56891.0,0.29454437]
[1726056909977,0.000817,56892.0,56891.0,0.29805951]
[1726056910204,0.000817,56892.0,56891.0,0.18957418]
[1726056911865,0.000817,56892.0,56891.0,0.013634]
[1726056912069,0.032717,56892.0,56891.0,0.013634]
[1726056912303,0.032717,56892.0,56891.0,0.18957418]
[1726056914766,0.000817,56892.0,56891.0,0.18957418]
[1726056915414,0.032717,56892.0,56891.0,0.18957418]
[1726056916667,0.032717,56892.0,56891.0,0.013634]
[1726056916668,0.09245113,56892.0,56891.0,0.013634]
[1726056916875,0.10295113,56892.0,56891.0,0.013634]
[1726056917135,0.11219624,56892.0,56891.0,0.013634]
[1726056917743,0.11219624,56892.0,56891.0,0.008634]
[1726056917944,0.11219624,56892.0,56891.0,0.001634]
[1726056918163,0.11619624,56892.0,56891.0,0.002634]
[1726056918365,0.11719624,56892.0,56891.0,0.001634]
[1726056918802,0.11619624,56892.0,56891.0,0.002634]
[1726056918992,0.11619624,56892.0,56891.0,0.001634]
[1726056919427,0.12519624,56892.0,56891.0,0.003634]
[1726056919843,0.12019624,56892.0,56891.0,0.002634]
[1726056921861,0.12019624,56892.0,56891.0,0.003634]
[1726056921862,0.10645113,56892.0,56891.0,0.003634]
[1726056930231,0.07455113,56892.0,56891.0,0.003634]
[1726056930489,0.014817,56892.0,56891.0,0.3790953]
[1726056931213,0.006817,56892.0,56891.0,0.5170953]
[1726056931428,0.006817,56892.0,56891.0,0.6400953]
[1726056931673,0.010817,56892.0,56891.0,0.6410953]
[1726056932342,0.010817,56892.0,56891.0,0.6390953]
[1726056932343,0.000817,56892.0,56891.0,0.6390953]
[1726056932566,0.000817,56892.0,56891.0,0.6400953]
[1726056932567,0.005817,56892.0,56891.0,0.6400953]
[1726056932792,0.005817,56892.0,56891.0,0.6450953]
[1726056932997,0.000817,56892.0,56891.0,0.6440953]
[1726056933438,0.000817,56892.0,56891.0,0.6580953]
[1726056934167,0.000817,56892.0,56891.0,0.6530953]
[1726056934407,0.000817,56892.0,56891.0,0.6690953]
[1726056934637,0.000817,56892.0,56891.0,0.6550953]
[1726056935104,0.000817,56892.0,56891.0,0.6690953]
[1726056935338,0.000817,56892.0,56891.0,0.69936117]
[1726056935794,0.000817,56892.0,56891.0,2.19936117]
[1726056938075,0.000817,56892.0,56891.0,2.19736117]
[1726056939182,0.000817,56892.0,56891.0,1.94457418]
[1726056939419,0.000817,56892.0,56891.0,0.44457418]
[1726056939661,0.000817,56892.0,56891.0,0.6440953]
[1726056940776,0.000817,56892.0,56891.0,0.6670953]
[1726056944347,0.000817,56892.0,56891.0,0.38127418]
[1726056944571,0.000817,56892.0,56891.0,0.30557418]
[1726056944798,0.000817,56892.0,56891.0,0.20557418]
[1726056945662,0.000817,56892.0,56891.0,0.19157418]
[1726056946145,0.000817,56892.0,56891.0,0.20557418]
[1726056946649,0.19952112,56904.0,56891.0,0.029634]
[1726056946877,0.05257588,56903.0,56891.0,0.029634]
[1726056947088,0.23365612,56904.0,56891.0,0.015634]
[1726056947089,0.19952112,56900.0,56891.0,0.015634]
[1726056947305,0.19952112,56900.0,56891.0,0.027634]
[1726056947554,0.01995211,56899.0,56891.0,0.027634]
[1726056947784,0.01995211,56899.0,56891.0,0.015634]
[1726056948032,0.19589229,56899.0,56891.0,0.015634]
[1726056948256,0.19952112,56896.0,56891.0,0.015634]
[1726056948520,0.19589229,56899.0,56891.0,0.016634]
[1726056948754,0.04529893,56898.0,56891.0,0.002634]
[1726056948987,0.19789229,56899.0,56891.0,0.002634]
[1726056949488,0.19589229,56899.0,56891.0,0.001634]
[1726056949968,0.20189229,56899.0,56891.0,0.002634]